bitfinex-derivatives/quotes_BTCF0:USTF0_20250416
["timestamp","ask_amount","ask_price","bid_price","bid_amount"]
[1744830171349,0.22012023,84220.0,84219.0,0.1187356]
[1744830171851,0.1188142,84220.0,84219.0,0.1187356]
[1744830172055,0.1187342,84220.0,84219.0,0.2115356]
[1744830172258,0.1187342,84220.0,84219.0,0.3968356]
[1744830172453,0.00896154,84221.0,84220.0,0.1187342]
[1744830172654,0.1187328,84221.0,84220.0,0.3058342]
[1744830173862,0.1187328,84221.0,84220.0,0.3068342]
[1744830174565,0.1187328,84221.0,84220.0,0.1881]
[1744830174858,0.12782801,84221.0,84220.0,0.1197342]
[1744830175053,0.48862801,84221.0,84220.0,0.1197342]
[1744830175255,0.57952801,84221.0,84220.0,0.001]
[1744830175556,0.30812801,84221.0,84220.0,0.001]
[1744830175967,0.30812801,84221.0,84220.0,0.1197342]
[1744830176263,0.66892801,84221.0,84220.0,0.1197342]
[1744830176452,0.66892801,84221.0,84220.0,0.001]
[1744830176858,0.1187342,84220.0,84219.0,0.1187354]
[1744830177053,0.2128342,84220.0,84219.0,0.1187354]
[1744830177257,0.1187455,84212.0,84206.0,0.0593763]
[1744830177563,0.1187455,84212.0,84207.0,0.0593761]
[1744830177748,0.1187455,84212.0,84211.0,0.11892499]
[1744830178154,0.2994455,84212.0,84211.0,0.11892499]
[1744830178659,0.2994455,84212.0,84211.0,0.21512499]
[1744830179068,0.2995255,84212.0,84211.0,0.21512499]
[1744830180152,0.2995255,84212.0,84211.0,0.57592499]
[1744830180759,0.2084255,84212.0,84211.0,0.57692499]
[1744830180960,0.0896,84212.0,84211.0,0.57692499]
[1744830181163,0.1187354,84220.0,84219.0,0.1187342]
[1744830181358,0.2071354,84220.0,84219.0,0.1187342]
[1744830182566,0.118737,84218.0,84217.0,0.0593685]
[1744830182768,0.0593691,84218.0,84212.0,0.178114]
[1744830182958,0.1187441,84213.0,84212.0,0.2374865]
[1744830183872,0.1187455,84212.0,84211.0,0.00017809]
[1744830184056,0.2127455,84212.0,84211.0,0.11892499]
[1744830184460,0.2127455,84212.0,84211.0,0.00017809]
[1744830184765,0.2127455,84212.0,84211.0,0.11892499]
[1744830186167,0.2127455,84212.0,84211.0,0.11992499]
[1744830187366,0.3043455,84212.0,84211.0,0.11992499]
[1744830187972,0.3043455,84212.0,84211.0,0.00117809]
[1744830188173,0.6651455,84212.0,84211.0,0.00117809]
[1744830188476,0.1187667,84197.0,84196.0,0.1287667]
[1744830188666,0.1187667,84197.0,84196.0,0.1187667]
[1744830189871,0.1187667,84197.0,84196.0,0.1217667]
[1744830191262,0.1187667,84197.0,84196.0,0.003]
[1744830191577,0.1187667,84197.0,84169.0,0.5940272]
[1744830191578,0.1187779,84189.0,84183.0,0.0593931]
[1744830191765,0.4795779,84189.0,84179.0,0.0593955]
[1744830191970,0.49518162,84189.0,84179.0,0.0593955]
[1744830192265,0.49518162,84189.0,84180.0,0.0909]
[1744830192670,0.68628162,84189.0,84188.0,0.11895739]
[1744830193071,0.68628162,84189.0,84188.0,0.00217809]
[1744830193362,0.68628162,84189.0,84188.0,0.00317809]
[1744830194876,0.80724526,84189.0,84188.0,0.00317809]
[1744830195274,0.80724526,84189.0,84188.0,0.12195739]
[1744830195468,0.44644526,84189.0,84188.0,0.12195739]
[1744830195872,0.32766736,84189.0,84188.0,0.12195739]
[1744830196070,0.21596364,84189.0,84188.0,0.12195739]
[1744830196278,0.12096364,84189.0,84188.0,0.12195739]
[1744830196476,0.12104364,84189.0,84188.0,0.12195739]
[1744830196678,0.12104364,84189.0,84188.0,0.29995739]
[1744830196980,0.23982154,84189.0,84188.0,0.29995739]
[1744830197280,0.23982154,84189.0,84188.0,0.66075739]
[1744830197281,0.12104364,84189.0,84188.0,0.66075739]
[1744830198680,8e-05,84189.0,84188.0,0.66075739]
[1744830198880,0.07509496,84195.0,84193.0,0.1187709]
[1744830199181,0.07509496,84195.0,84194.0,0.1809]
[1744830200579,0.07509496,84195.0,84194.0,0.2996709]
[1744830203876,0.1187723,84193.0,84192.0,0.0593862]
[1744830204477,0.2131723,84193.0,84192.0,0.0593862]
[1744830205071,0.0944,84193.0,84188.0,0.00017809]
[1744830205276,0.1187779,84189.0,84188.0,0.00017809]
[1744830205774,0.1781957,84177.0,84174.0,0.0983]
[1744830205973,0.1781957,84177.0,84176.0,0.1187949]
[1744830206583,0.1781957,84177.0,84176.0,0.3110949]
[1744830207171,0.2710957,84177.0,84176.0,0.3110949]
[1744830207481,0.513098,84177.0,84168.0,0.0001782]
[1744830207782,0.1187991,84174.0,84171.0,0.1565816]
[1744830208080,0.4795991,84174.0,84171.0,0.1565016]
[1744830208673,0.4795991,84174.0,84173.0,0.126909]
[1744830209284,0.4795991,84174.0,84173.0,0.0141085]
[1744830210081,0.4795991,84174.0,84173.0,0.129909]
[1744830210282,0.4795991,84174.0,84173.0,0.133909]
[1744830210976,0.0087728,84174.0,84173.0,0.133909]
[1744830211179,0.18098019,84191.0,84184.0,0.118785]
[1744830211375,0.1189618,84185.0,84184.0,0.118785]
[1744830211784,0.2088618,84185.0,84184.0,0.118785]
[1744830212086,0.1189618,84185.0,84184.0,0.118785]
[1744830212293,0.1189618,84185.0,84184.0,0.300885]
[1744830212485,0.1189618,84185.0,84184.0,0.302885]
[1744830213282,0.12798961,84185.0,84184.0,0.304885]
[1744830214276,0.22078961,84185.0,84184.0,0.304885]
[1744830214584,0.12798961,84185.0,84184.0,0.304885]
[1744830214889,0.22078961,84185.0,84184.0,0.304885]
[1744830215388,0.58158961,84185.0,84184.0,0.1861]
[1744830215586,0.67458961,84185.0,84184.0,0.004]
[1744830215987,0.76938961,84185.0,84184.0,0.004]
[1744830216182,0.40858961,84185.0,84184.0,0.004]
[1744830216682,0.76938961,84185.0,84184.0,0.004]
[1744830217184,0.40858961,84185.0,84184.0,0.004]
[1744830217386,0.76938961,84185.0,84184.0,0.004]
[1744830221593,0.1187991,84174.0,84173.0,0.0051085]
[1744830221788,0.1187991,84174.0,84173.0,0.123909]
[1744830222094,0.3608,84175.0,84174.0,0.1187991]
[1744830222287,0.4795977,84175.0,84174.0,0.3004991]
[1744830222486,0.3608,84175.0,84174.0,0.3004991]
[1744830222795,0.4796777,84175.0,84174.0,0.3004991]
[1744830223694,0.1188777,84175.0,84174.0,0.3004991]
[1744830224696,8e-05,84175.0,84174.0,0.3004991]
[1744830224892,8e-05,84175.0,84174.0,0.3034991]
[1744830225091,8e-05,84175.0,84174.0,0.3084991]
[1744830225792,8e-05,84175.0,84174.0,0.3284991]
[1744830225994,0.12989081,84185.0,84184.0,0.118785]
[1744830226591,0.12997081,84185.0,84184.0,0.118785]
[1744830226786,0.12997081,84185.0,84184.0,0.304385]
[1744830227081,0.12997081,84185.0,84184.0,0.305385]
[1744830228199,0.12997081,84185.0,84184.0,0.307385]
[1744830228591,0.00928601,84185.0,84184.0,0.307385]
[1744830229699,0.21012177,84210.0,84184.0,1.15558685]
[1744830229889,0.20985604,84210.0,84209.0,0.1187497]
[1744830230095,0.20985604,84210.0,84209.0,0.6595497]
[1744830230994,0.24124665,84215.0,84209.0,0.6595497]
[1744830230995,0.24124665,84215.0,84211.0,0.0593728]
[1744830231193,0.24124665,84215.0,84214.0,0.1187427]
[1744830231389,0.24124665,84215.0,84214.0,0.2387427]
[1744830231794,0.24132665,84215.0,84214.0,0.2387427]
[1744830231996,0.24124665,84215.0,84214.0,0.2387427]
[1744830232299,0.00010801,84225.0,84218.0,0.0593684]
[1744830232497,0.123723,84228.0,84227.0,0.1187243]
[1744830232703,0.1324821,84228.0,84227.0,0.1187243]
[1744830233088,0.1324821,84228.0,84227.0,0.2086243]
[1744830233499,0.2219821,84228.0,84227.0,0.2086243]
[1744830233893,0.1324821,84228.0,84227.0,0.2086243]
[1744830234088,0.0177591,84228.0,84227.0,0.2086243]
[1744830234294,0.009,84228.0,84227.0,0.2186243]
[1744830234597,0.1278029,84228.0,84227.0,0.2186243]
[1744830234795,0.01708,84228.0,84227.0,0.2186243]
[1744830234995,0.1358029,84228.0,84227.0,0.2186243]
[1744830235192,0.14476346,84228.0,84227.0,0.2186243]
[1744830235794,0.14476346,84228.0,84227.0,0.2086243]
[1744830235995,0.14176346,84228.0,84227.0,0.2086243]
[1744830236199,0.14076346,84228.0,84227.0,0.2086243]
[1744830237208,0.14076346,84228.0,84227.0,0.0899]
[1744830237700,0.22676346,84228.0,84227.0,0.0899]
[1744830238901,0.22676346,84228.0,84227.0,0.2086243]
[1744830239895,0.22676346,84228.0,84227.0,0.5694243]
[1744830240302,0.22676346,84228.0,84227.0,0.1187243]
[1744830240694,0.1187243,84227.0,84226.0,0.3608]
[1744830240901,0.1187342,84221.0,84220.0,0.118734]
[1744830241095,0.1187342,84221.0,84220.0,0.304734]
[1744830241404,0.2145342,84221.0,84220.0,0.186]
[1744830241604,0.1187342,84220.0,84219.0,0.00017809]
[1744830241794,0.7536342,84220.0,84219.0,0.00017809]
[1744830241999,0.3928342,84220.0,84219.0,0.00017809]
[1744830242405,0.1187511,84208.0,84207.0,0.3608]
[1744830242599,0.1187554,84205.0,84204.0,0.2375071]
[1744830243000,0.1187554,84205.0,84204.0,0.059377]
[1744830243496,0.13347695,84205.0,84204.0,0.059377]
[1744830243707,0.22377695,84205.0,84204.0,0.059377]
[1744830244201,0.1187667,84197.0,84196.0,0.00017809]
[1744830244499,0.4795667,84197.0,84196.0,0.00017809]
[1744830245307,0.5698667,84197.0,84196.0,0.12294619]
[1744830245605,0.5699467,84197.0,84196.0,0.12294619]
[1744830245808,0.5699467,84197.0,84196.0,0.00417809]
[1744830245999,0.5709467,84197.0,84196.0,0.00417809]
[1744830246618,0.5699467,84197.0,84196.0,0.00417809]
[1744830246800,0.5719467,84197.0,84196.0,0.00017809]
[1744830247197,0.5709467,84197.0,84196.0,0.00017809]
[1744830247404,0.5718667,84197.0,84196.0,0.11894619]
[1744830247600,0.5719467,84197.0,84196.0,0.11894619]
[1744830248200,0.5719467,84197.0,84196.0,0.00017809]
[1744830248403,0.5709467,84197.0,84196.0,0.00017809]
[1744830248698,0.5719467,84197.0,84196.0,0.00017809]
[1744830249401,0.1187864,84184.0,84183.0,0.1187863]
[1744830249710,0.1187935,84178.0,84177.0,8e-05]
[1744830249899,0.0593987,84176.0,84175.0,0.1187977]
[1744830250308,0.1520987,84176.0,84175.0,0.1187977]
[1744830250708,0.2462987,84176.0,84175.0,0.1187977]
[1744830251111,0.2462987,84176.0,84175.0,0.1237977]
[1744830251708,0.3650978,84176.0,84175.0,0.1237977]
[1744830252300,0.74991583,84176.0,84175.0,0.008]
[1744830252510,0.0594023,84170.0,84167.0,0.0001782]
[1744830252713,0.1188076,84168.0,84167.0,0.0001782]
[1744830253100,0.3034076,84168.0,84167.0,0.0002582]
[1744830253306,0.3034076,84168.0,84167.0,0.0001782]
[1744830253513,0.3034076,84168.0,84167.0,0.0002582]
[1744830253708,0.3034076,84168.0,84167.0,0.0072582]
[1744830254209,0.3044076,84168.0,84167.0,0.0072582]
[1744830254599,0.3044076,84168.0,84167.0,0.0112582]
[1744830255316,0.3044076,84168.0,84167.0,0.0072582]
[1744830255510,0.3044076,84168.0,84167.0,0.0102582]
[1744830256213,0.3034076,84168.0,84167.0,0.0032582]
[1744830256416,0.3034076,84168.0,84167.0,0.0072582]
[1744830258308,0.1188245,84156.0,84152.0,0.01019683]
[1744830258507,0.1188245,84156.0,84152.0,0.00019683]
[1744830259102,0.118833,84150.0,84149.0,0.5730338]
[1744830259307,0.118833,84150.0,84147.0,0.09001007]
[1744830259308,0.1188358,84148.0,84147.0,0.00511007]
[1744830259909,0.2936358,84148.0,84147.0,0.00519007]
[1744830260113,0.2936358,84148.0,84141.0,0.00011931]
[1744830260114,0.1188443,84142.0,84141.0,0.00011931]
[1744830260316,0.1188471,84140.0,84139.0,0.00090668]
[1744830261005,0.0594187,84147.0,84140.0,0.0594234]
[1744830261215,0.1782657,84143.0,84142.0,0.1188443]
[1744830261511,0.1782657,84143.0,84142.0,0.2981443]
[1744830261711,0.2652657,84143.0,84142.0,0.2981443]
[1744830261915,0.28059161,84143.0,84142.0,0.2981443]
[1744830262116,0.28059161,84143.0,84142.0,0.1793]
[1744830262417,0.36859161,84143.0,84142.0,0.1793]
[1744830262616,0.36859161,84143.0,84142.0,0.2981443]
[1744830262819,0.28059161,84143.0,84142.0,0.2981443]
[1744830263009,0.28059161,84143.0,84142.0,0.3001443]
[1744830263504,0.28059161,84143.0,84142.0,0.3021443]
[1744830263708,0.19359161,84143.0,84142.0,0.3021443]
[1744830264014,0.11056,84168.0,84157.0,0.1188231]
[1744830264208,0.1188153,84163.0,84157.0,0.4796231]
[1744830264408,0.0895,84170.0,84157.0,0.6557231]
[1744830264611,0.1188177,84161.0,84157.0,0.6557231]
[1744830265112,0.1188193,84160.0,84157.0,0.6557231]
[1744830265414,0.1188205,84159.0,84157.0,0.6557231]
[1744830265609,0.1189999,84158.0,84157.0,0.6557231]
[1744830265813,0.1189999,84158.0,84157.0,0.5369]
[1744830265814,0.1209999,84158.0,84157.0,0.5369]
[1744830266008,0.1209999,84158.0,84157.0,0.17618]
[1744830266215,0.1209999,84158.0,84157.0,0.17836535]
[1744830266415,0.1209999,84158.0,84157.0,0.09356535]
[1744830266621,0.1188415,84144.0,84143.0,0.0918]
[1744830266817,0.1188415,84144.0,84143.0,0.3867429]
[1744830267212,0.1188415,84144.0,84143.0,0.26798]
[1744830268819,0.1188415,84144.0,84143.0,0.3888229]
[1744830270116,0.1188415,84144.0,84143.0,0.3918229]
[1744830271419,0.1188415,84144.0,84143.0,0.2729]
[1744830271920,0.1188415,84144.0,84143.0,0.1811]
[1744830272121,0.2041415,84144.0,84143.0,0.1811]
[1744830272510,0.2041415,84144.0,84143.0,0.18118]
[1744830275818,0.2041415,84144.0,84143.0,0.1811]
[1744830276224,0.2041415,84144.0,84132.0,0.0594288]
[1744830276225,0.1188598,84131.0,84115.0,0.059441]
[1744830276419,0.1188626,84129.0,84128.0,0.0877]
[1744830277225,0.0594292,84132.0,84121.0,0.06454795]
[1744830277226,0.1188725,84122.0,84121.0,0.00521965]
[1744830277428,0.4796725,84122.0,84121.0,0.00511165]
[1744830277726,0.4796725,84122.0,84121.0,0.00519165]
[1744830277920,0.49453049,84122.0,84121.0,0.00519165]
[1744830278116,0.67693049,84122.0,84121.0,0.00511165]
[1744830278326,0.67693049,84122.0,84121.0,0.00919165]
[1744830278920,0.67693049,84122.0,84121.0,0.00911165]
[1744830279133,0.1188881,84111.0,84110.0,0.0847]
[1744830279319,0.4202442,84111.0,84105.0,0.0001458]
[1744830279524,0.1188937,84107.0,84106.0,0.2070952]
[1744830280126,0.1188937,84107.0,84106.0,0.2952952]
[1744830280428,0.1817,84110.0,84107.0,0.0594462]
[1744830280620,0.0594435,84112.0,84111.0,0.1783287]
[1744830280820,0.0594355,84124.0,84118.0,0.1188782]
[1744830281025,0.0594354,84124.0,84118.0,0.1188782]
[1744830281220,0.11905511,84119.0,84118.0,0.1188782]
[1744830281625,0.00017831,84119.0,84118.0,0.1188782]
[1744830281827,0.00017831,84119.0,84118.0,0.5659782]
[1744830282226,0.11905511,84119.0,84118.0,0.5659782]
[1744830282819,0.00217831,84119.0,84118.0,0.5659782]
[1744830283735,0.1188558,84134.0,84133.0,0.0594279]
[1744830283937,0.13403696,84134.0,84133.0,0.3203279]
[1744830284524,0.14277286,84134.0,84133.0,0.3203279]
[1744830284738,0.14277286,84134.0,84133.0,0.6811279]
[1744830285235,0.15277286,84134.0,84133.0,0.6821279]
[1744830285829,0.03391706,84134.0,84133.0,0.6821279]
[1744830286029,0.0187359,84134.0,84133.0,0.6821279]
[1744830286232,0.1375915,84134.0,84133.0,0.6821279]
[1744830287437,0.01,84134.0,84133.0,0.6821279]
[1744830287635,0.1106,84139.0,84136.0,0.0594257]
[1744830287826,0.1188472,84140.0,84139.0,0.1188485]
[1744830288627,0.1277539,84140.0,84139.0,0.1188485]
[1744830288829,0.14261412,84140.0,84139.0,0.1188485]
[1744830289235,0.14961412,84140.0,84139.0,0.1198485]
[1744830289637,0.14961412,84140.0,84139.0,0.001]
[1744830290045,0.0594252,84138.0,84134.0,0.000108]
[1744830290242,0.1188542,84135.0,84134.0,0.000108]
[1744830290442,0.1188612,84130.0,84129.0,0.00017831]
[1744830291345,0.3001612,84130.0,84129.0,0.00017831]
[1744830291654,0.3001612,84130.0,84129.0,0.00025831]
[1744830292037,0.3031612,84130.0,84129.0,0.00025831]
[1744830294139,0.1188782,84118.0,84117.0,0.0001458]
[1744830294335,0.1188853,84113.0,84112.0,0.09]
[1744830295639,0.1188853,84113.0,84112.0,0.092]
[1744830295846,0.1188853,84113.0,84112.0,0.002]
[1744830296243,0.1188853,84113.0,84107.0,0.09]
[1744830296244,0.1188966,84105.0,84104.0,0.17908238]
[1744830296836,0.118898,84104.0,84103.0,0.000108]
[1744830297042,0.1189008,84102.0,84101.0,0.09]
[1744830297347,0.1189022,84101.0,84100.0,0.1]
[1744830297652,0.2904022,84101.0,84100.0,0.1]
[1744830298246,0.30570196,84101.0,84100.0,0.10008]
[1744830298546,0.30570196,84101.0,84100.0,0.1]
[1744830298745,0.30570196,84101.0,84100.0,0.10008]
[1744830299153,0.66650196,84101.0,84100.0,0.10008]
[1744830299341,0.30570196,84101.0,84100.0,0.10008]
[1744830300444,0.22490196,84101.0,84100.0,0.2189836]
[1744830300739,0.22490196,84101.0,84100.0,0.10008]
[1744830300947,0.58570196,84101.0,84100.0,0.1]
[1744830301150,0.58570196,84101.0,84100.0,0.10008]
[1744830301351,0.22490196,84101.0,84100.0,0.10008]
[1744830301548,0.22490196,84101.0,84100.0,0.1]
[1744830301952,0.22490196,84101.0,84100.0,0.2189836]
[1744830302150,0.1696061,84108.0,84107.0,0.1188937]
[1744830302151,0.11016,84108.0,84107.0,0.1188937]
[1744830302349,0.2074796,84117.0,84116.0,0.118881]
[1744830302650,0.1188796,84117.0,84116.0,0.118881]
[1744830302852,0.00017831,84121.0,84120.0,0.1188754]
[1744830303147,0.00017831,84121.0,84120.0,0.1388754]
[1744830303549,0.014902,84121.0,84120.0,0.3151754]
[1744830303750,0.133776,84121.0,84120.0,0.3151754]
[1744830303951,0.059431,84130.0,84129.0,0.1188626]
[1744830304752,0.059431,84130.0,84129.0,0.2951626]
[1744830305447,0.063431,84130.0,84129.0,0.2951626]
[1744830305851,0.07844198,84130.0,84129.0,0.2951626]
[1744830307952,0.08044198,84130.0,84129.0,0.2951626]
[1744830308159,0.006,84130.0,84129.0,0.2951626]
[1744830308451,0.11902821,84138.0,84137.0,0.1188513]
[1744830309045,0.11902821,84138.0,84137.0,0.2964513]
[1744830309244,0.0594343,84125.0,84110.0,0.0594444]
[1744830309456,0.1188754,84120.0,84119.0,0.2964761]
[1744830310342,0.0903,84124.0,84123.0,0.1188711]
[1744830310549,0.1782987,84131.0,84130.0,0.1188584]
[1744830310750,0.1782987,84131.0,84130.0,0.2053584]
[1744830310950,0.1782987,84131.0,84130.0,0.2904584]
[1744830311848,0.1802987,84131.0,84130.0,0.2904584]
[1744830312158,0.002,84131.0,84130.0,0.2904584]
[1744830312359,0.1208598,84131.0,84130.0,0.2904584]
[1744830312748,0.002,84131.0,84130.0,0.2904584]
[1744830312944,0.1208598,84131.0,84130.0,0.2904584]
[1744830313157,0.64203839,84150.0,84130.0,0.2904584]
[1744830313158,8e-05,84145.0,84134.0,0.0594276]
[1744830313455,0.0594074,84163.0,84162.0,0.1188146]
[1744830313653,0.00010801,84163.0,84162.0,0.1188146]
[1744830313846,0.0859,84179.0,84169.0,0.059403]
[1744830314047,0.13259341,84176.0,84175.0,0.1187977]
[1744830314364,0.1188076,84168.0,84167.0,0.00017831]
[1744830315260,0.2856076,84168.0,84167.0,0.00017831]
[1744830315559,0.2896076,84168.0,84167.0,0.00017831]
[1744830316067,0.2087076,84168.0,84167.0,0.00017831]
[1744830316356,0.2087876,84168.0,84167.0,0.00017831]
[1744830316951,0.2087876,84168.0,84167.0,0.29748731]
[1744830317156,0.2117876,84168.0,84167.0,0.00017831]
[1744830317356,0.5725876,84168.0,84167.0,0.00017831]
[1744830317763,0.5705876,84168.0,84167.0,0.00017831]
[1744830318464,0.1188217,84158.0,84153.0,0.1785]
[1744830318661,0.1188372,84147.0,84146.0,8e-05]
[1744830318857,0.1188372,84147.0,84146.0,0.1188386]
[1744830319054,0.1782448,84153.0,84152.0,0.1188302]
[1744830319957,0.1783248,84153.0,84152.0,0.1188302]
[1744830320153,8e-05,84153.0,84152.0,0.2024302]
[1744830320358,0.001,84158.0,84155.0,0.1782355]
[1744830320556,0.001,84158.0,84157.0,0.1188231]
[1744830320557,0.1188231,84158.0,84157.0,0.1188231]
[1744830320963,0.1188231,84158.0,84157.0,0.2870231]
[1744830321455,0.2005231,84158.0,84157.0,0.2870231]
[1744830321668,0.2883231,84158.0,84157.0,0.1682]
[1744830323165,0.1188259,84156.0,84155.0,0.0594129]
[1744830323366,0.1188259,84156.0,84155.0,0.1782388]
[1744830323569,0.2845259,84156.0,84155.0,0.3439388]
[1744830324165,0.1977259,84156.0,84155.0,0.3439388]
[1744830324355,0.1188259,84156.0,84155.0,0.3439388]
[1744830324670,0.004,84156.0,84155.0,0.3439388]
[1744830324860,0.0835,84174.0,84155.0,0.8065]
[1744830325060,0.1782149,84169.0,84168.0,0.1188005]
[1744830327169,0.00010801,84172.0,84171.0,0.1188033]
[1744830327361,0.005,84176.0,84175.0,0.1187977]
[1744830327556,0.00019684,84181.0,84175.0,0.3808]
[1744830327773,0.00014581,84187.0,84186.0,0.1187822]
[1744830327971,0.0593828,84198.0,84191.0,0.0593874]
[1744830328157,0.005,84202.0,84198.0,0.059382]
[1744830328472,0.1237596,84202.0,84201.0,0.118761]
[1744830328771,0.1187624,84200.0,84199.0,0.2905638]
[1744830329358,0.005,84202.0,84199.0,0.2311813]
[1744830329664,0.1188424,84200.0,84199.0,0.2811813]
[1744830329970,0.1187624,84200.0,84199.0,0.2811813]
[1744830330265,8e-05,84200.0,84199.0,0.2811813]
[1744830330571,0.00408,84200.0,84199.0,0.2811813]
[1744830330774,0.1228424,84200.0,84199.0,0.2311813]
[1744830330969,0.1187723,84193.0,84192.0,0.0001782]
[1744830331874,0.2875723,84193.0,84192.0,0.0001782]
[1744830332865,0.2905723,84193.0,84192.0,0.0001782]
[1744830333572,0.2935723,84193.0,84192.0,0.0001782]
[1744830334167,0.2935723,84193.0,84192.0,0.1189519]
[1744830334373,0.08988,84193.0,84192.0,0.1189519]
[1744830334572,0.2086523,84193.0,84192.0,0.1189519]
[1744830335274,0.00608,84193.0,84192.0,0.2852519]
[1744830335481,0.006,84193.0,84192.0,0.2852519]
[1744830335664,0.00608,84193.0,84192.0,0.2852519]
[1744830335868,0.006,84193.0,84192.0,0.3352519]
[1744830336065,0.005,84202.0,84201.0,0.118761]
[1744830336688,0.1380325,84202.0,84201.0,0.1707]
[1744830336876,0.2097396,84202.0,84201.0,0.1707]
[1744830337077,0.2097396,84202.0,84201.0,0.289461]
[1744830337277,0.2137396,84202.0,84201.0,0.289461]
[1744830337582,0.2197396,84202.0,84201.0,0.289461]
[1744830339774,0.1187624,84200.0,84199.0,0.3608]
[1744830340081,0.1187624,84200.0,84199.0,0.4795638]
[1744830340283,0.1187624,84200.0,84199.0,0.3608]
[1744830340983,0.1187624,84200.0,84199.0,0.4795638]
[1744830341177,0.1982624,84200.0,84199.0,0.4795638]
[1744830341884,0.2012624,84200.0,84199.0,0.4795638]
[1744830342285,0.2062624,84200.0,84199.0,0.4795638]
[1744830343479,0.2062624,84200.0,84199.0,0.1187638]
[1744830343684,0.1781513,84198.0,84197.0,0.118766]
[1744830343888,0.1187681,84196.0,84195.0,0.2003681]
[1744830344196,0.1187656,84198.0,84195.0,0.2203841]
[1744830344487,0.1187656,84198.0,84197.0,0.1187667]
[1744830344692,0.008,84200.0,84199.0,0.1187638]
[1744830345384,0.005,84200.0,84199.0,0.2832638]
[1744830345887,0.1187612,84201.0,84200.0,0.1187624]
[1744830346391,0.005,84202.0,84201.0,0.118761]
[1744830346579,0.01967841,84202.0,84201.0,0.284361]
[1744830346778,0.005,84202.0,84201.0,0.284361]
[1744830347282,0.005,84202.0,84201.0,0.304361]
[1744830347782,0.00508,84202.0,84201.0,0.304361]
[1744830347973,0.005,84202.0,84201.0,0.304361]
[1744830348179,0.00508,84202.0,84201.0,0.304361]
[1744830348377,0.005,84202.0,84201.0,0.304361]
[1744830348579,0.0842,84226.0,84207.0,0.1187525]
[1744830348781,1.5708,84228.0,84207.0,0.5395525]
[1744830348980,0.0857,84225.0,84207.0,0.5395525]
[1744830349290,0.00010801,84215.0,84207.0,0.7027525]
[1744830349590,0.0002582,84208.0,84207.0,0.7027525]
[1744830349888,0.0857,84225.0,84213.0,0.0593718]
[1744830350083,0.005,84228.0,84227.0,0.1187243]
[1744830350696,0.08578,84228.0,84227.0,0.1187243]
[1744830350884,0.09474348,84228.0,84227.0,0.1187243]
[1744830351188,0.09874348,84228.0,84227.0,0.1197243]
[1744830351490,0.11282389,84228.0,84227.0,0.1197243]
[1744830351680,0.23154679,84228.0,84227.0,0.1197243]
[1744830352291,0.24154679,84228.0,84227.0,0.1207243]
[1744830354092,0.24154679,84228.0,84227.0,0.002]
[1744830354390,0.24154679,84228.0,84227.0,0.00024298]
[1744830354691,0.24146679,84228.0,84227.0,0.00024298]
[1744830354882,0.24154679,84228.0,84227.0,4.349e-05]
[1744830355279,0.1187342,84220.0,84217.0,0.3608]
[1744830355482,0.1187342,84220.0,84219.0,0.11891369]
[1744830356383,0.1277342,84220.0,84219.0,0.20301369]
[1744830356584,0.1277342,84220.0,84219.0,0.00117809]
[1744830356792,0.0593741,84212.0,84211.0,0.1187469]
[1744830357489,0.1781238,84212.0,84211.0,0.1187469]
[1744830357692,0.1781238,84212.0,84210.0,0.1187446]
[1744830357693,0.0811,84215.0,84214.0,0.1187427]
[1744830357889,0.1998413,84215.0,84214.0,0.4795427]
[1744830358494,0.1187342,84220.0,84219.0,0.1781027]
[1744830358881,0.1187342,84220.0,84219.0,0.0593671]
[1744830359082,0.1188142,84220.0,84219.0,0.0593671]
[1744830360494,0.25008,84220.0,84201.0,0.3608]
[1744830360797,0.0593727,84212.0,84205.0,0.059377]
[1744830361094,0.00017809,84217.0,84216.0,0.1187399]
[1744830361295,0.08507809,84217.0,84216.0,0.1187399]
[1744830361597,0.11891649,84217.0,84216.0,0.1187399]
[1744830361800,0.00017809,84217.0,84216.0,0.1187399]
[1744830362095,0.00025809,84217.0,84216.0,0.1187399]
[1744830362292,0.00325809,84217.0,84216.0,0.1187399]
[1744830362495,0.00317809,84217.0,84216.0,0.1187399]
[1744830362800,0.00325809,84217.0,84216.0,0.1187399]
[1744830362997,0.00317809,84217.0,84216.0,0.1187399]
[1744830363197,0.00317809,84217.0,84216.0,0.1387399]
[1744830363702,0.00325809,84217.0,84216.0,0.1187399]
[1744830363894,0.00425809,84217.0,84216.0,0.1187399]
[1744830364996,0.12299649,84217.0,84216.0,0.1187399]
[1744830365196,0.20689649,84217.0,84216.0,0.1187399]
[1744830366814,0.44895809,84217.0,84205.0,0.0593756]
[1744830367016,0.1187554,84205.0,84204.0,0.0807]
[1744830367217,0.1187554,84205.0,84204.0,0.1187568]
[1744830367415,0.1187568,84204.0,84203.0,0.00017809]
[1744830368320,0.1187709,84194.0,84193.0,0.3608]
[1744830368517,0.118785,84184.0,84177.0,0.25188779]
[1744830368814,0.118785,84184.0,84177.0,0.24188779]
[1744830369211,0.286585,84184.0,84177.0,0.24188779]
[1744830369620,0.30061181,84184.0,84177.0,0.24188779]
[1744830369820,0.30954434,84184.0,84183.0,0.17016638]
[1744830370217,0.30954434,84184.0,84168.0,0.26280219]
[1744830370218,0.1188062,84169.0,84168.0,0.26280219]
[1744830370416,0.4796062,84169.0,84168.0,0.26280219]
[1744830370619,0.8404062,84169.0,84168.0,0.26280219]
[1744830370816,0.4796062,84169.0,84168.0,0.26280219]
[1744830371011,0.6443062,84169.0,84168.0,0.26280219]
[1744830371324,0.1983062,84169.0,84168.0,0.38160979]
[1744830371511,0.1983862,84169.0,84168.0,0.38160979]
[1744830371714,0.08758,84169.0,84168.0,0.1188076]
[1744830371913,0.00808,84169.0,84168.0,0.1188076]
[1744830372319,0.1268862,84169.0,84168.0,0.1188076]
[1744830372513,0.1268862,84169.0,84166.0,0.4202046]
[1744830372514,0.118809,84167.0,84166.0,0.3608]
[1744830372924,0.0594142,84154.0,84151.0,0.1782428]
[1744830373224,0.1188316,84152.0,84151.0,0.1782428]
[1744830373822,0.0866,84152.0,84151.0,0.1783228]
[1744830374029,0.0594105,84159.0,84158.0,0.1188217]
[1744830374322,0.07347524,84159.0,84158.0,0.1188217]
[1744830374523,0.01406474,84159.0,84158.0,0.1188217]
[1744830374712,0.01459574,84163.0,84162.0,0.118816]
[1744830374907,0.01448773,84163.0,84162.0,0.118816]
[1744830375119,0.059408,84162.0,84158.0,0.3608]
[1744830375424,0.1188203,84159.0,84158.0,0.36088]
[1744830376428,0.1188245,84156.0,84155.0,0.3608]
[1744830376722,0.1188358,84151.0,84150.0,0.0595622]
[1744830376921,0.1782528,84151.0,84150.0,0.1783952]
[1744830377119,0.059417,84151.0,84150.0,0.1783952]
[1744830377321,0.2058266,84155.0,84154.0,0.1188273]